bitfinex/quotes_BTCUSD_20220226
["timestamp","ask_amount","ask_price","bid_price","bid_amount"]
[1645912096115,0.60305433,39393.0,39388.0,0.001]
[1645912096516,0.45018957,39393.0,39388.0,0.001]
[1645912096916,0.27857563,39393.0,39388.0,0.001]
[1645912097167,0.27957563,39393.0,39388.0,0.001]
[1645912097364,0.60405433,39393.0,39388.0,0.001]
[1645912097565,1.43718433,39393.0,39388.0,0.001]
[1645912097776,1.15228,39390.0,39388.0,0.001]
[1645912097964,1.0990787,39389.0,39388.0,0.001]
[1645912098168,1.27069264,39389.0,39388.0,0.001]
[1645912098365,0.49609264,39389.0,39388.0,0.001]
[1645912098564,1.0990787,39389.0,39388.0,0.001]
[1645912099067,0.49709264,39389.0,39388.0,0.001]
[1645912099267,0.55029394,39389.0,39388.0,0.001]
[1645912099466,0.001,39389.0,39388.0,0.001]
[1645912099767,1.5827187,39389.0,39388.0,0.001]
[1645912100066,1.85433264,39389.0,39388.0,0.001]
[1645912100465,1.85333264,39389.0,39388.0,0.001]
[1645912101116,1.85533264,39389.0,39388.0,0.001]
[1645912102317,1.85274513,39389.0,39388.0,0.001]
[1645912102919,2.06709756,39389.0,39388.0,0.00045786]
[1645912103119,2.06909756,39389.0,39388.0,0.00045786]
[1645912103324,2.06909756,39389.0,39388.0,7.86e-06]
[1645912103621,2.17308566,39389.0,39388.0,7.86e-06]
[1645912103820,2.18322566,39389.0,39388.0,7.86e-06]
[1645912104221,1.92167472,39389.0,39388.0,7.86e-06]
[1645912104422,0.20165524,39385.0,39384.0,0.02934974]
[1645912104666,0.69287224,39385.0,39384.0,0.02934974]
[1645912105068,0.86648618,39385.0,39384.0,0.02934974]
[1645912105264,1.19096488,39385.0,39384.0,0.02934974]
[1645912105467,1.37530634,39385.0,39384.0,0.02934974]
[1645912106067,2.14990634,39385.0,39384.0,0.02934974]
[1645912106468,2.14790634,39385.0,39384.0,0.02934974]
[1645912107270,2.14990634,39385.0,39384.0,0.02934974]
[1645912108313,2.14790634,39385.0,39384.0,0.02934974]
[1645912109114,2.14990634,39385.0,39384.0,0.02934974]
[1645912109514,1.96556488,39385.0,39384.0,0.02934974]
[1645912109915,1.96556488,39385.0,39384.0,0.02434974]
[1645912110416,1.96356488,39385.0,39384.0,0.02434974]
[1645912110615,2.18743831,39385.0,39384.0,0.02434974]
[1645912111218,2.18843831,39385.0,39384.0,0.02434974]
[1645912111616,1.96456488,39385.0,39384.0,0.02434974]
[1645912112474,1.36551291,39385.0,39384.0,0.02434974]
[1645912112672,1.18896488,39385.0,39384.0,0.02434974]
[1645912113071,1.19096488,39385.0,39384.0,0.02434974]
[1645912113675,1.35970958,39385.0,39384.0,0.02434974]
[1645912114473,1.35770958,39385.0,39384.0,0.02434974]
[1645912114873,1.18896488,39385.0,39384.0,0.02434974]
[1645912115072,0.86448618,39385.0,39384.0,0.02434974]
[1645912115273,0.28715094,39385.0,39384.0,0.02434974]
[1645912115485,0.127076,39387.0,39384.0,0.02434974]
[1645912115681,0.33147245,39389.0,39385.0,0.42808]
[1645912115682,0.26794053,39389.0,39385.0,0.42808]
[1645912115933,0.01,39390.0,39385.0,0.42808]
[1645912115934,0.01,39390.0,39388.0,0.47768]
[1645912116132,0.22894855,39401.0,39390.0,0.65]
[1645912116336,0.22894855,39401.0,39399.0,0.1]
[1645912116528,0.32152864,39406.0,39400.0,0.7525587]
[1645912116730,0.32152864,39410.0,39405.0,0.1]
[1645912116928,0.803033,39421.0,39406.0,0.42808]
[1645912116929,0.32152864,39412.0,39406.0,0.42808]
[1645912117130,0.32152864,39413.0,39406.0,0.52808]
[1645912117327,0.32152864,39413.0,39412.0,0.23508015]
[1645912117527,0.39011674,39416.0,39412.0,0.23508015]
[1645912117528,0.32152864,39414.0,39412.0,0.23508015]
[1645912117726,0.32152864,39415.0,39412.0,0.23508015]
[1645912118327,0.00013135,39415.0,39412.0,0.23508015]
[1645912118725,0.00013135,39415.0,39413.0,0.37768]
[1645912119129,0.015,39416.0,39413.0,0.37768]
[1645912119326,0.001,39415.0,39413.0,0.37768]
[1645912119589,0.001,39415.0,39414.0,0.317152]
[1645912119793,0.001,39415.0,39414.0,0.694832]
[1645912119985,0.001,39415.0,39414.0,0.745232]
[1645912120388,0.001,39415.0,39414.0,0.94372865]
[1645912120584,0.001,39415.0,39414.0,0.770582]
[1645912121183,0.01543673,39416.0,39414.0,0.770582]
[1645912121384,0.01543673,39416.0,39415.0,0.720182]
[1645912121590,0.32152864,39427.0,39415.0,0.770582]
[1645912121988,6.73e-06,39417.0,39415.0,0.820582]
[1645912122189,6.73e-06,39417.0,39416.0,2.47334982]
[1645912122389,6.73e-06,39417.0,39416.0,1.74914982]
[1645912122587,6.73e-06,39417.0,39416.0,2.51024982]
[1645912122784,0.32152864,39431.0,39417.0,0.02535]
[1645912122986,0.32152864,39431.0,39421.0,0.37768]
[1645912123183,0.16530918,39429.0,39423.0,0.37768]
[1645912123415,0.16530918,39429.0,39425.0,0.61454776]
[1645912123617,0.32152864,39433.0,39425.0,0.66494776]
[1645912124215,0.63820086,39434.0,39425.0,0.66494776]
[1645912124612,0.63820086,39434.0,39425.0,0.09306316]
[1645912125014,0.21693039,39429.0,39426.0,0.148978]
[1645912125217,0.31920918,39428.0,39420.0,0.052]
[1645912125414,0.21693039,39429.0,39421.0,0.428101]
[1645912125814,0.21693039,39429.0,39421.0,0.478101]
[1645912126015,0.21593692,39426.0,39421.0,0.1004]
[1645912126215,0.21693039,39429.0,39422.0,0.377701]
[1645912126428,0.18763104,39423.0,39417.0,0.377701]
[1645912127285,0.22203122,39420.0,39416.0,0.7611]
[1645912127474,0.31920918,39422.0,39416.0,0.7611]
[1645912127674,0.18763104,39423.0,39416.0,0.7611]
[1645912127870,0.00043457,39420.0,39416.0,0.7611]
[1645912128067,0.00043457,39420.0,39416.0,0.94646002]
[1645912128276,0.00043457,39420.0,39417.0,0.377701]
[1645912128885,0.01013,39429.0,39416.0,0.99686002]
[1645912129071,0.01013,39429.0,39417.0,0.403051]
[1645912129072,0.00043457,39420.0,39417.0,0.403051]
[1645912129270,0.00043457,39420.0,39419.0,0.02535]
[1645912129474,0.00043457,39420.0,39419.0,0.199501]
[1645912130072,0.22213178,39430.0,39419.0,0.199501]
[1645912130273,0.22213178,39430.0,39425.0,0.20412012]
[1645912130473,0.26722472,39433.0,39426.0,0.377618]
[1645912130673,0.26722472,39433.0,39425.0,0.20412012]
[1645912131516,0.00043457,39431.0,39426.0,0.377701]
[1645912132417,0.01013,39434.0,39426.0,0.377701]
[1645912132617,0.00043457,39430.0,39426.0,0.377701]
[1645912133616,0.01013,39434.0,39426.0,0.377701]
[1645912133817,0.00043457,39430.0,39425.0,0.20412012]
[1645912134016,0.00043457,39430.0,39426.0,0.377701]
[1645912134867,0.32933918,39435.0,39426.0,0.377701]
[1645912135066,0.00043457,39430.0,39425.0,0.20412012]
[1645912135267,0.00043457,39430.0,39426.0,0.377701]
[1645912136066,0.18168087,39435.0,39426.0,0.377701]
[1645912136067,0.01013,39435.0,39426.0,0.377701]
[1645912136268,0.00043457,39430.0,39425.0,0.20412012]
[1645912136467,0.00043457,39430.0,39426.0,0.377701]
[1645912137371,0.21240154,39432.0,39426.0,0.377701]
[1645912137569,0.00043457,39430.0,39426.0,0.377701]
[1645912138069,0.00043457,39430.0,39421.0,0.001]
[1645912138070,0.22042747,39430.0,39421.0,0.001]
[1645912138522,0.22042747,39430.0,39420.0,0.377701]
[1645912138721,0.22042747,39430.0,39419.0,0.01013]
[1645912138919,0.39197834,39430.0,39416.0,0.11013]
[1645912139119,0.39197834,39430.0,39419.0,0.17566355]
[1645912139319,0.31920918,39429.0,39419.0,0.17566355]
[1645912139519,0.22042747,39430.0,39420.0,0.377701]
[1645912143266,0.22042747,39430.0,39420.0,0.27247316]
[1645912144269,0.00043342,39432.0,39420.0,0.27247316]
[1645912144468,0.01013,39433.0,39420.0,0.27247316]
[1645912144868,0.00043342,39432.0,39420.0,0.27247316]
[1645912145268,0.00043342,39432.0,39426.0,0.149041]
[1645912145469,0.00043342,39432.0,39425.0,0.19637872]
[1645912145669,0.01013,39433.0,39425.0,0.19637872]
[1645912145916,0.00043347,39432.0,39425.0,0.19637872]
[1645912146519,0.21334196,39429.0,39417.0,0.16103]
[1645912146716,0.31866678,39428.0,39418.0,0.377709]
[1645912146917,0.21334196,39429.0,39418.0,0.377709]
[1645912147621,0.21334196,39429.0,39421.0,0.19542344]
[1645912148017,0.21334196,39429.0,39422.0,0.043796]
[1645912148617,0.54448723,39428.0,39422.0,0.043796]
[1645912148821,0.54448723,39428.0,39418.0,0.043854]
[1645912149122,0.54448723,39428.0,39407.0,0.1508]
[1645912149123,0.7746,39427.0,39407.0,0.1508]
[1645912149318,0.31866678,39426.0,39417.0,0.001]
[1645912149777,0.32879678,39426.0,39417.0,0.001]
[1645912149971,0.22920072,39422.0,39417.0,0.001]
[1645912150176,0.31866678,39421.0,39417.0,0.001]
[1645912150374,0.22920072,39422.0,39417.0,0.001]
[1645912150769,0.22920072,39422.0,39416.0,0.00043085]
[1645912150969,0.31866678,39421.0,39416.0,0.00043085]
[1645912151176,0.18132922,39419.0,39416.0,0.00043085]
[1645912151369,0.31866678,39421.0,39416.0,0.00043085]
[1645912151570,0.31866678,39421.0,39412.0,0.001]
[1645912151571,0.31366678,39421.0,39412.0,0.001]
[1645912151971,0.31366678,39421.0,39416.0,0.00043085]
[1645912152369,0.16484518,39418.0,39416.0,0.00043085]
[1645912152568,0.31366678,39421.0,39416.0,0.00043085]
[1645912152969,0.31366678,39421.0,39404.0,0.01013]
[1645912153168,0.31366678,39421.0,39416.0,0.00041645]
[1645912153424,0.32379678,39421.0,39416.0,0.00041645]
[1645912153625,0.19316475,39418.0,39416.0,0.00041645]
[1645912154027,0.19316475,39418.0,39403.0,0.08548]
[1645912154227,0.17920668,39415.0,39410.0,0.19909899]
[1645912154426,0.19316475,39418.0,39411.0,0.044015]
[1645912154626,0.19316475,39418.0,39411.0,0.377709]
[1645912154826,0.19316475,39418.0,39410.0,0.19909899]
[1645912155026,0.19316475,39418.0,39411.0,0.377709]
[1645912155432,1.87797288,39415.0,39412.0,0.00040176]
[1645912156227,0.23266413,39417.0,39412.0,0.00040176]
[1645912156427,0.23266413,39417.0,39411.0,0.377709]
[1645912156628,0.32879678,39422.0,39412.0,0.00028847]
[1645912156828,0.37879678,39422.0,39412.0,0.00028847]
[1645912157281,0.06013,39422.0,39412.0,0.00028847]
[1645912157479,0.01013,39422.0,39412.0,0.00028847]
[1645912157675,0.01013,39422.0,39410.0,0.19909899]
[1645912157676,0.19596488,39421.0,39410.0,0.19909899]
[1645912157877,0.19596488,39421.0,39415.0,0.00041836]
[1645912158276,0.31866678,39420.0,39415.0,0.00041836]
[1645912158775,0.19596488,39421.0,39415.0,0.00041836]
[1645912158976,0.19596488,39421.0,39410.0,0.19909899]
[1645912159176,0.31866678,39420.0,39416.0,0.00041835]
[1645912159375,0.19596488,39421.0,39416.0,0.00041835]
[1645912159875,0.65032542,39422.0,39416.0,0.00041835]
[1645912160076,0.32152864,39421.0,39410.0,0.19909899]
[1645912160276,0.32879678,39422.0,39416.0,0.00041715]
[1645912160277,0.32152864,39418.0,39416.0,0.00041715]
[1645912160921,0.37511674,39420.0,39416.0,0.1992919]
[1645912161323,0.37511674,39420.0,39416.0,0.19887475]
[1645912161520,0.69378352,39420.0,39416.0,0.1992919]
[1645912162421,0.37511674,39420.0,39416.0,0.19887475]
[1645912162620,0.37511674,39420.0,39416.0,0.19927085]
[1645912163021,0.19216012,39419.0,39416.0,0.19927085]
[1645912163420,0.56727686,39419.0,39416.0,0.19927085]
[1645912163622,0.37511674,39420.0,39416.0,0.19887475]
[1645912163822,0.37511674,39420.0,39416.0,0.19927093]
[1645912164221,0.37511674,39419.0,39416.0,0.19927093]
[1645912164873,0.37511674,39419.0,39416.0,0.19887475]
[1645912165078,0.37511674,39419.0,39416.0,0.19927093]
[1645912165778,0.0421737,39421.0,39416.0,0.19927093]
[1645912165779,0.32145835,39418.0,39417.0,0.377709]
[1645912165977,0.32145835,39419.0,39417.0,0.377709]
[1645912166178,0.32145835,39422.0,39417.0,0.377709]
[1645912166378,0.82615835,39423.0,39417.0,0.377709]
[1645912166676,0.82615835,39423.0,39422.0,0.22019633]
[1645912166677,0.32145835,39423.0,39422.0,0.22019633]
[1645912166881,0.37511674,39424.0,39416.0,0.00039618]
[1645912167077,0.32142708,39421.0,39416.0,0.00039618]
[1645912167275,0.32142708,39421.0,39417.0,0.377709]
[1645912167476,0.32142708,39421.0,39408.0,0.06013]
[1645912167676,0.32142708,39420.0,39416.0,0.00040049]
[1645912167877,0.32142708,39421.0,39419.0,0.377709]
[1645912169129,0.32142708,39421.0,39420.0,0.377709]
[1645912169328,0.32142708,39422.0,39420.0,0.377709]
[1645912169728,0.32142708,39423.0,39420.0,0.377709]
[1645912170130,0.32142708,39424.0,39420.0,0.377709]
[1645912170732,0.32142708,39425.0,39420.0,0.428109]
[1645912170933,0.31802615,39425.0,39420.0,0.428109]
[1645912171535,0.31802615,39425.0,39420.0,0.423109]
[1645912171930,0.37511674,39428.0,39420.0,0.423109]
[1645912172174,0.37511674,39429.0,39420.0,0.423109]
[1645912172373,0.37511674,39429.0,39428.0,0.22844781]
[1645912172578,0.37511674,39429.0,39428.0,0.27226881]
[1645912173574,0.37511674,39429.0,39428.0,0.043821]
[1645912173774,0.37511674,39429.0,39417.0,0.15473]
[1645912173775,0.37285842,39429.0,39417.0,0.15473]
[1645912174075,0.37495703,39427.0,39418.0,0.377709]
[1645912174274,2.42142625,39427.0,39418.0,0.377709]
[1645912174474,0.69362381,39426.0,39417.0,0.01013]
[1645912174675,0.37495703,39425.0,39418.0,0.17765746]
[1645912174873,0.54652609,39426.0,39419.0,0.377709]
[1645912175926,0.54652609,39426.0,39425.0,0.18377094]
[1645912176129,0.37495703,39428.0,39425.0,0.18377094]
[1645912176321,0.37495703,39428.0,39426.0,0.038761]
[1645912176521,0.37495703,39428.0,39426.0,0.377709]
[1645912176928,0.37495703,39430.0,39426.0,0.377709]
[1645912177131,0.38995703,39431.0,39426.0,0.377709]
[1645912179865,0.38495703,39431.0,39426.0,0.377709]
[1645912180871,0.01,39431.0,39426.0,0.377709]
[1645912183724,0.01,39431.0,39428.0,0.038758]
[1645912184925,0.01,39431.0,39430.0,0.377667]
[1645912185129,0.01,39431.0,39430.0,0.74673378]
[1645912186626,0.016719,39439.0,39430.0,0.74673378]
[1645912186824,0.016719,39439.0,39435.0,0.17693706]
[1645912187073,0.016719,39439.0,39436.0,0.038747]
[1645912188072,0.01713593,39439.0,39436.0,0.038747]
[1645912188471,0.00713593,39439.0,39436.0,0.038747]
[1645912188673,0.00213593,39439.0,39436.0,0.038747]
[1645912189079,0.001719,39439.0,39436.0,0.038747]
[1645912189473,0.0021359,39439.0,39436.0,0.038747]
[1645912190278,0.001719,39439.0,39436.0,0.038747]
[1645912190674,0.00208141,39439.0,39436.0,0.038747]
[1645912191521,0.001719,39439.0,39436.0,0.038747]
[1645912191727,0.00208141,39439.0,39436.0,0.038747]
[1645912192126,0.00208141,39439.0,39436.0,0.35741378]
[1645912192328,0.00208141,39439.0,39437.0,0.0504]
[1645912192525,0.00208141,39439.0,39438.0,0.69624578]
[1645912192727,0.001719,39439.0,39438.0,0.74664578]
[1645912193123,0.03708141,39440.0,39438.0,0.74664578]
[1645912193326,0.03708141,39440.0,39439.0,0.35740978]
[1645912193528,0.03708141,39440.0,39439.0,0.40780978]
[1645912193726,0.00144932,39448.0,39441.0,0.377547]
[1645912193926,0.67256906,39451.0,39443.0,0.038732]
[1645912194125,0.501,39451.0,39445.0,0.377507]
[1645912194330,0.01,39452.0,39447.0,0.038724]
[1645912194580,0.01,39452.0,39447.0,0.22432913]
[1645912194777,0.01,39452.0,39449.0,0.377466]
[1645912196578,0.16964534,39455.0,39449.0,0.377466]
[1645912196782,0.01012,39457.0,39450.0,0.377709]
[1645912196982,0.01012,39457.0,39452.0,0.377698]
[1645912197183,0.17156906,39458.0,39449.0,0.0504]
[1645912197395,0.54652609,39460.0,39449.0,0.3678437]
[1645912197579,1.14955703,39459.0,39449.0,0.0504]
[1645912197780,0.17156906,39458.0,39449.0,0.0504]
[1645912198179,2.06323925,39450.0,39449.0,0.428109]
[1645912198431,0.063423,39457.0,39449.0,0.428109]
[1645912198631,0.21462003,39450.0,39449.0,0.428109]
[1645912199236,0.21462003,39450.0,39437.0,0.01012]
[1645912199237,0.90977273,39450.0,39437.0,0.01012]
[1645912199434,0.53206373,39450.0,39444.0,0.001]
[1645912200033,0.17154676,39447.0,39444.0,0.001]
[1645912200234,0.53206373,39450.0,39444.0,0.001]
[1645912200433,0.00043166,39449.0,39444.0,0.001]
[1645912200633,0.00043166,39449.0,39441.0,0.2274777]
[1645912201132,0.21462003,39450.0,39434.0,0.16783]
[1645912201333,2.59236922,39445.0,39441.0,0.377709]
[1645912201534,2.79475882,39445.0,39442.0,0.377709]
[1645912201738,2.79475882,39445.0,39436.0,0.002]
[1645912202194,2.79475882,39445.0,39437.0,0.16876371]
[1645912202595,0.00043166,39444.0,39437.0,0.16876371]
[1645912202993,0.31787536,39444.0,39437.0,0.16876371]
[1645912203192,0.00043166,39444.0,39437.0,0.16876371]
[1645912203492,0.18688106,39444.0,39437.0,0.16876371]
[1645912204092,0.18688106,39444.0,39435.0,0.002]
[1645912204494,0.50432476,39444.0,39435.0,0.002]
[1645912204695,0.50432476,39444.0,39434.0,0.16783]
[1645912204892,0.18688106,39444.0,39434.0,0.16783]
[1645912205093,0.18688106,39444.0,39435.0,0.19747538]
[1645912205593,0.18688106,39444.0,39435.0,0.19847538]
[1645912206627,0.18688106,39444.0,39435.0,0.19747538]
[1645912207227,0.96148106,39444.0,39434.0,0.01013]
[1645912207427,1.0920437,39443.0,39435.0,0.001]
[1645912207828,0.0504,39442.0,39435.0,0.001]
[1645912208025,0.3174437,39441.0,39435.0,0.001]
[1645912208627,0.3174437,39441.0,39434.0,0.01013]
[1645912210277,1.0920437,39441.0,39434.0,0.01013]
[1645912210483,1.0920437,39441.0,39433.0,0.00044346]
[1645912210484,1.1924437,39441.0,39433.0,0.00044346]
[1645912210683,1.5701527,39441.0,39433.0,0.00044346]
[1645912210882,1.89166747,39441.0,39423.0,0.1453]
[1645912211080,1.89166747,39441.0,39433.0,0.00044346]
[1645912211081,1.90179747,39441.0,39433.0,0.00044346]
[1645912211580,2.07428537,39441.0,39433.0,0.00044346]
[1645912211778,2.07360985,39441.0,39433.0,0.00044346]
[1645912212277,2.07360985,39441.0,39433.0,0.00043066]
[1645912213330,2.07360985,39441.0,39423.0,0.32859432]
[1645912213531,2.07360985,39441.0,39433.0,0.00043066]
[1645912213732,2.08376885,39441.0,39433.0,0.00043066]
[1645912214431,2.45872588,39441.0,39423.0,0.32859432]
[1645912214631,2.45872588,39441.0,39433.0,0.00043066]
[1645912214931,2.44856688,39441.0,39433.0,0.00043066]
[1645912215332,2.07285788,39441.0,39433.0,0.00043066]
[1645912215535,0.7746,39439.0,39433.0,0.00043066]
[1645912215735,0.7746,39436.0,39420.0,0.05]
[1645912215935,0.7746,39434.0,39433.0,0.0004165]
[1645912216132,0.51865577,39434.0,39433.0,0.0004165]
[1645912216332,1.34365577,39434.0,39433.0,0.0004165]
[1645912216535,1.54876832,39434.0,39433.0,0.0004165]
[1645912216734,0.77416832,39434.0,39433.0,0.0004165]
[1645912216935,0.83762832,39434.0,39420.0,0.19438282]
[1645912217190,0.83762832,39434.0,39432.0,0.00041649]
[1645912217389,0.31660022,39433.0,39432.0,0.00041649]
[1645912217691,1.14160022,39433.0,39432.0,0.00041649]
[1645912218084,1.14160022,39433.0,39420.0,0.19438282]
[1645912218285,1.14160022,39433.0,39431.0,0.0004165]
[1645912218485,1.09120022,39432.0,39431.0,0.0004165]
[1645912218686,1.14160022,39432.0,39431.0,0.0004165]
[1645912219389,0.21474508,39426.0,39419.0,0.1791005]
[1645912219588,0.21474508,39426.0,39424.0,0.00167013]
[1645912220588,0.21474508,39426.0,39423.0,0.00041752]
[1645912221423,0.21674508,39426.0,39423.0,0.00041752]
[1645912221622,0.21674508,39426.0,39419.0,0.1791005]
[1645912221822,0.21674508,39426.0,39423.0,0.00041752]
[1645912222022,0.002,39426.0,39423.0,0.00041752]
[1645912222623,0.31660022,39428.0,39423.0,0.00041752]
[1645912222827,0.31660022,39428.0,39419.0,0.1791005]
[1645912223022,0.17776442,39427.0,39423.0,0.00041746]
[1645912223423,0.31660022,39428.0,39423.0,0.00041746]
[1645912223623,0.31660022,39430.0,39425.0,0.23825088]
[1645912224222,0.31660022,39430.0,39426.0,0.00041743]
[1645912224423,0.32673022,39431.0,39426.0,0.00041743]
[1645912224876,1.10133022,39431.0,39426.0,0.00041743]
[1645912225273,1.10133022,39431.0,39425.0,0.23825088]
[1645912225479,0.19435584,39429.0,39427.0,0.00041743]
[1645912225688,1.10433022,39431.0,39427.0,0.00041743]
[1645912226580,1.10133022,39431.0,39425.0,0.23825088]
[1645912226872,1.10133022,39431.0,39427.0,0.00041743]
[1645912227273,0.32673022,39431.0,39427.0,0.00041743]
[1645912227473,0.19032853,39430.0,39427.0,0.00041743]
[1645912227674,0.19032853,39430.0,39425.0,0.23821621]
[1645912227873,0.31860022,39431.0,39427.0,0.00041743]
[1645912228077,0.49015234,39431.0,39427.0,0.00041743]
[1645912228531,1.26475234,39431.0,39427.0,0.00041743]
[1645912228723,1.09120022,39431.0,39427.0,0.00041743]
[1645912228923,1.09120022,39431.0,39425.0,0.23821621]
[1645912229123,0.17155248,39430.0,39425.0,0.23821621]
[1645912229328,0.33346835,39430.0,39425.0,0.23821621]
[1645912229725,0.31660022,39429.0,39425.0,0.23821621]
[1645912230324,0.31660022,39429.0,39425.0,0.23863365]
[1645912230925,0.31660022,39429.0,39425.0,0.00041744]
[1645912231228,0.31660022,39429.0,39419.0,0.00167002]
[1645912231425,0.31960022,39429.0,39425.0,0.00041744]
[1645912231826,0.36960022,39429.0,39425.0,0.00041744]
[1645912232087,0.5840139,39429.0,39425.0,0.00041744]
[1645912232488,0.75556638,39429.0,39419.0,0.17041916]
[1645912232687,1.152309,39428.0,39425.0,0.00028794]
[1645912232888,1.152309,39426.0,39425.0,0.00028794]
[1645912233087,1.09120022,39426.0,39425.0,0.00028794]
[1645912233292,1.3131527,39426.0,39425.0,0.00028794]
[1645912233687,1.3131527,39426.0,39415.0,0.01013]
[1645912233891,0.17698416,39419.0,39418.0,0.00115074]
[1645912234989,0.17698416,39419.0,39417.0,0.00041704]
[1645912235388,0.17898416,39419.0,39417.0,0.00041704]
[1645912236027,0.002,39419.0,39415.0,0.01013]
[1645912236226,0.002,39419.0,39416.0,0.00041704]
[1645912236726,0.36700022,39423.0,39416.0,0.00041704]
[1645912237428,0.36900022,39423.0,39418.0,0.0004169]
[1645912238430,0.36900022,39423.0,39415.0,0.01013]
[1645912238627,0.36700022,39423.0,39419.0,0.0004169]
[1645912238828,0.19878015,39421.0,39419.0,0.0004169]
[1645912239428,0.002,39421.0,39419.0,0.0004169]
[1645912239675,0.002,39421.0,39415.0,0.01013]
[1645912239879,0.002,39421.0,39418.0,0.0004169]
[1645912240479,0.18307365,39419.0,39418.0,0.0004169]
[1645912240882,0.18307365,39419.0,39415.0,0.01013]
[1645912241084,0.18307365,39419.0,39417.0,0.00041692]
[1645912241480,0.18507365,39419.0,39417.0,0.00041692]
[1645912242082,0.18507365,39419.0,39412.0,0.17597995]
[1645912242280,0.18507365,39419.0,39416.0,0.00041692]
[1645912243080,0.002,39419.0,39418.0,0.22784196]
[1645912243333,0.0504,39422.0,39418.0,0.22784196]
[1645912243534,0.002,39419.0,39418.0,0.22784196]
[1645912245036,0.0504,39422.0,39418.0,0.22784196]
[1645912245437,0.002,39419.0,39418.0,0.22784196]
[1645912245838,0.002,39419.0,39418.0,0.22825887]
[1645912246738,0.0504,39422.0,39418.0,0.22825887]
[1645912246938,0.377709,39421.0,39418.0,0.22784196]
[1645912247187,0.377709,39421.0,39411.0,0.001]
[1645912247188,0.0504,39422.0,39417.0,0.00041692]
[1645912247388,0.0524,39422.0,39417.0,0.00041692]
[1645912248084,0.0524,39422.0,39411.0,0.001]
[1645912248287,0.002,39422.0,39418.0,0.00041691]
[1645912248686,0.1463,39423.0,39418.0,0.00041691]
[1645912249185,0.01013,39426.0,39422.0,0.18700233]
[1645912249385,0.002,39423.0,39422.0,0.18700233]
[1645912250833,0.96546388,39430.0,39422.0,0.18700233]
[1645912251021,0.69886366,39430.0,39422.0,0.18700233]
[1645912251221,1.01546388,39430.0,39422.0,0.18700233]
[1645912251724,0.17156366,39430.0,39422.0,0.18700233]
[1645912251928,0.0090987,39432.0,39424.0,0.00041687]
[1645912252123,0.0090987,39432.0,39425.0,0.038791]
[1645912252523,0.0090987,39432.0,39425.0,0.03867461]
[1645912253222,0.0090987,39432.0,39425.0,0.00041686]
[1645912254130,0.0090987,39432.0,39422.0,0.21235233]
[1645912254326,0.0090987,39432.0,39425.0,0.00041686]
[1645912254573,0.0090987,39432.0,39426.0,0.377709]
[1645912255574,0.0090987,39432.0,39428.0,0.185289]
[1645912256577,0.1746187,39434.0,39428.0,0.185289]
[1645912257179,0.1746187,39434.0,39425.0,0.00041687]
[1645912257582,1.86013561,39433.0,39425.0,0.00041687]
[1645912257782,0.77429782,39430.0,39416.0,0.1277]
[1645912258178,2.94402128,39427.0,39418.0,0.23116288]
[1645912258423,2.7763173,39427.0,39418.0,0.22616288]
[1645912259023,0.17156467,39426.0,39418.0,0.22616288]
[1645912259224,0.17156467,39426.0,39421.0,0.00028754]
[1645912259426,0.17414085,39425.0,39421.0,0.00028754]
[1645912259823,0.17156467,39426.0,39421.0,0.00028754]
[1645912260225,0.17156467,39426.0,39418.0,0.22616288]
[1645912260426,0.17156467,39426.0,39422.0,0.00028754]
[1645912261028,0.18169467,39426.0,39422.0,0.00028754]
[1645912261432,0.18469467,39426.0,39413.0,0.31660022]
[1645912261631,0.18469467,39426.0,39422.0,0.00041609]
[1645912262084,0.17456467,39426.0,39422.0,0.00041609]
[1645912262480,0.22456467,39426.0,39421.0,0.21797345]
[1645912262680,0.22156467,39426.0,39422.0,0.00042317]
[1645912263078,0.18298203,39425.0,39422.0,0.00042317]
[1645912263279,0.22156467,39426.0,39422.0,0.00042317]
[1645912263578,0.053,39426.0,39422.0,0.00042317]
[1645912263777,0.053,39426.0,39413.0,0.52970967]
[1645912263778,0.003,39426.0,39413.0,0.52970967]
[1645912263980,0.003,39426.0,39422.0,0.00042317]
[1645912264586,1.09400022,39426.0,39422.0,0.00042317]
[1645912264783,1.01626361,39425.0,39422.0,0.00042317]
[1645912264983,0.7744,39423.0,39412.0,0.1286]
[1645912265182,0.8244,39423.0,39411.0,0.001]
[1645912265382,0.31660022,39422.0,39416.0,0.00117863]
[1645912265581,0.2187578,39420.0,39416.0,0.00117863]
[1645912265827,0.05,39423.0,39416.0,0.00117863]
[1645912266327,0.31660022,39424.0,39418.0,0.00042301]
[1645912267326,0.31660022,39424.0,39417.0,0.16970936]
[1645912267527,0.31860022,39424.0,39419.0,0.000423]
[1645912268329,0.31860022,39424.0,39417.0,0.16968086]
[1645912268729,0.31660022,39424.0,39417.0,0.16968086]
[1645912269684,0.31360022,39424.0,39417.0,0.16968086]
[1645912270281,0.48517441,39424.0,39417.0,0.16968086]
[1645912270483,0.31360022,39424.0,39417.0,0.16968086]
[1645912270883,0.31160022,39424.0,39417.0,0.16968086]
[1645912271083,0.31160022,39424.0,39417.0,0.17012333]
[1645912271484,0.31360022,39424.0,39417.0,0.17012333]
[1645912272188,0.002,39424.0,39417.0,0.16968086]
[1645912272386,0.002,39424.0,39417.0,0.17012333]
[1645912272784,0.17157419,39426.0,39417.0,0.17012333]
[1645912273331,0.17157419,39426.0,39423.0,0.22941446]
[1645912273840,0.17157419,39426.0,39424.0,0.377709]
[1645912274034,0.00042891,39433.0,39426.0,0.34314837]
[1645912274235,0.00042891,39433.0,39427.0,0.038665]
[1645912274630,0.0090987,39434.0,39427.0,0.038665]
[1645912274835,0.000429,39433.0,39430.0,0.21813134]
[1645912275034,0.000429,39433.0,39431.0,0.377634]
[1645912275833,0.0090987,39434.0,39431.0,0.377634]
[1645912276030,0.00952772,39434.0,39431.0,0.377634]
[1645912276430,0.00952772,39434.0,39431.0,0.372634]
[1645912276631,0.00042902,39434.0,39431.0,0.372634]
[1645912277085,0.84671768,39439.0,39430.0,0.21813134]
[1645912277285,0.00042902,39434.0,39430.0,0.21813134]
[1645912277487,0.00042902,39434.0,39431.0,0.377694]
[1645912278179,0.84671768,39439.0,39430.0,0.21813134]
[1645912278381,0.00042902,39434.0,39430.0,0.21813134]
[1645912278581,0.00042902,39434.0,39431.0,0.377694]
[1645912278780,0.00042902,39434.0,39431.0,0.03359]
[1645912278984,0.00042902,39434.0,39432.0,0.377694]
[1645912279182,0.00042902,39434.0,39430.0,0.21813134]
[1645912279382,1.1634503,39439.0,39431.0,0.377694]
[1645912279582,0.00041435,39435.0,39430.0,0.21813134]